fUSD/lending_fUSD_20240203
["ID","MTS","AMOUNT","RATE_DAILY","PERIOD"]
[313203295,1706937041676,-500.0,0.00022799,2]
[313203296,1706937041686,-781.14,0.00022799,2]
[313203297,1706937041694,-737.39,0.00022799,2]
[313203298,1706937041704,-500.0,0.00022799,2]
[313203299,1706937041712,-17621.83,0.00022799,2]
[313203300,1706937041721,-500.0,0.00022799,2]
[313203301,1706937041850,-500.0,0.00022799,2]
[313203302,1706937041859,-1409.85,0.00022799,2]
[313203303,1706937041868,-500.0,0.00022799,2]
[313203304,1706937041877,-500.0,0.00022799,2]
[313203305,1706937041886,-500.0,0.00022799,2]
[313203306,1706937041895,-500.0,0.00022799,2]
[313203307,1706937041904,-243684.45186634,0.000228,2]
[313203308,1706937041916,-913.72473074,0.000228,2]
[313203309,1706937041935,-793.57873986,0.000228,2]
[313203310,1706937041949,-372.03993255,0.000228,2]
[313203311,1706937041964,-5426.30027645,0.000228,2]
[313203312,1706937041977,-713.6500075,0.000228,2]
[313203313,1706937041989,-843.56738472,0.000228,2]
[313203314,1706937042000,-5743.79673537,0.000228,2]
[313203316,1706937043716,244.94,0.00019989,2]
[313203318,1706937043858,-500.0,0.00022799,2]
[313203319,1706937043867,-3644.5198856,0.000228,2]
[313203320,1706937043878,-291.23162982,0.000228,2]
[313203321,1706937043889,-1002.33137428,0.000228,2]
[313203322,1706937043901,-683.00102979,0.000228,2]
[313203323,1706937043917,-288.71974104,0.000228,2]
[313203324,1706937043928,-1388.93050869,0.000228,2]
[313203325,1706937043939,-1210.36080118,0.000228,2]
[313203326,1706937043955,-572.09977409,0.000228,2]
[313203327,1706937043965,-702.38304042,0.000228,2]
[313203328,1706937043976,-1525.57672096,0.000228,2]
[313203329,1706937044003,244.94,0.00022253,2]
[313203330,1706937044019,-651.01243477,0.000228,2]
[313203331,1706937044035,-142519.60040037,0.000228,2]
[313203332,1706937044088,-432.0,0.000228,2]
[313203333,1706937044100,-4474.55107622,0.000228,2]
[313203334,1706937044146,-2390.5060322,0.000228,2]
[313203335,1706937046123,-1611.64277543,0.00022798,2]
[313203336,1706937046134,-546.03840788,0.000228,2]
[313203337,1706937046179,-392.69492834,0.000228,2]
[313203338,1706937046342,-771.37249293,0.000228,2]
[313203344,1706937059753,865.02431222,0.00022499,2]
[313203345,1706937141940,150.1,0.00022028,2]
[313203346,1706937235373,150.0,0.00022477,2]
[313203347,1706937344735,633.66,0.00021859,2]
[313203348,1706937392484,155.78,0.00021861,2]
[313203349,1706937428660,1000.0,0.000225,2]
[313203350,1706937524000,495.9,0.00021843,2]
[313203351,1706937526646,233.51,0.0001993,2]
[313203352,1706937526866,233.51,0.00022194,2]
[313203353,1706937556556,96381.0,0.00022424,2]
[313203354,1706937558807,176.88,0.0002232,2]
[313203355,1706937588346,150.1,0.00022024,2]
[313203356,1706937835441,185.97,0.00021847,2]
[313203357,1706937972759,528.05,0.00021784,2]
[313203358,1706937998605,210.15,0.00019858,2]
[313203359,1706937998800,210.15,0.00022122,2]
[313203360,1706937999887,603.28,0.00021776,2]
[313203361,1706938006338,150.1,0.00021939,2]
[313203362,1706938053915,209.0,0.00021564,2]
[313203365,1706938185331,176.88,0.0002188,2]
[313203366,1706938187062,176.88,0.00022428,2]
[313203385,1706938234616,-419.7406,0.00022593,2]
[313203386,1706938234672,-555.79337352,0.00022593,2]
[313203387,1706938234685,-636.10880191,0.00022593,2]
[313203388,1706938234694,-454.122,0.00022599,2]
[313203389,1706938234704,-275.02,0.000226,2]
[313203390,1706938234714,-156.73240999,0.00022609,2]
[313203391,1706938234724,-156.73240992,0.00022623,2]
[313203392,1706938234734,-156.73240992,0.00022638,2]
[313203393,1706938234746,-156.73240992,0.00022652,2]
[313203394,1706938234758,-156.73240992,0.00022666,2]
[313203395,1706938234767,-156.73240992,0.0002268,2]
[313203396,1706938234777,-156.73240992,0.00022695,2]
[313203397,1706938234786,-563.00964517,0.000227,2]
[313203398,1706938234797,-1934.24120179,0.000227,2]
[313203399,1706938234809,-5808.53689687,0.000227,2]
[313203400,1706938234821,-1599.41968309,0.000227,2]
[313203401,1706938234836,-1294.93512,0.000227,2]
[313203402,1706938234859,-650.41397724,0.000227,2]
[313203403,1706938234871,-492.21325743,0.000227,2]
[313203404,1706938234884,-284.72736181,0.000227,2]
[313203405,1706938234897,-8187.96528008,0.000227,2]
[313203406,1706938234914,-67150.46727652,0.000227,2]
[313203407,1706938234923,-156.73240992,0.00022709,2]
[313203408,1706938234933,-2917.0,0.00022709,2]
[313203409,1706938234942,-2282.0,0.00022709,2]
[313203410,1706938234953,-2867.0,0.00022709,2]
[313203411,1706938234964,-156.73240992,0.00022723,2]
[313203413,1706938234975,-156.73240992,0.00022737,2]
[313203415,1706938234984,-156.73240992,0.00022752,2]
[313203417,1706938234995,-210.58955905,0.00022762,2]
[313203419,1706938235004,-156.73240992,0.00022766,2]
[313203421,1706938235014,-216.54425365,0.0002278,2]
[313203423,1706938235023,-156.73240992,0.0002278,2]
[313203425,1706938235032,-365.31206219,0.0002278,2]
[313203427,1706938235041,-383.43455311,0.0002278,2]
[313203429,1706938235050,-210.58955901,0.00022782,2]
[313203431,1706938235060,-1389.67169385,0.0002279,2]
[313203433,1706938235070,-3164.29282192,0.00022798,2]
[313203435,1706938235080,-675.66,0.00022799,2]
[313203437,1706938235090,-500.0,0.00022799,2]
[313203439,1706938235099,-196.59367002,0.00022799,2]
[313203441,1706938235109,-500.0,0.00022799,2]
[313203443,1706938235118,-500.0,0.00022799,2]
[313203445,1706938235129,-500.0,0.00022799,2]
[313203447,1706938235138,-500.0,0.00022799,2]
[313203449,1706938235148,-513.98,0.00022799,2]
[313203451,1706938235157,-500.0,0.00022799,2]
[313203453,1706938235166,-500.0,0.00022799,2]
[313203455,1706938235175,-1351.1,0.00022799,2]
[313203457,1706938235184,-85476.2881795,0.000228,2]
[313203459,1706938235193,-1389.67169374,0.000228,2]
[313203461,1706938235203,-1964.047785,0.000228,2]
[313203463,1706938235212,-210.58955901,0.00022801,2]
[313203465,1706938235221,-1389.67169374,0.0002281,2]
[313203467,1706938235230,-1389.67169374,0.0002282,2]
[313203469,1706938235241,-210.58955901,0.00022821,2]
[313203471,1706938235253,-1389.67169374,0.0002283,2]
[313203473,1706938235262,-1389.67169374,0.0002284,2]
[313203475,1706938235271,-365.31206218,0.0002284,2]
[313203477,1706938235280,-383.43455311,0.0002284,2]
[313203479,1706938235289,-210.58955901,0.00022841,2]
[313203481,1706938235299,-1389.67169374,0.0002285,2]
[313203483,1706938235308,-500.0,0.00022859,2]
[313203485,1706938235317,-570.55,0.00022859,2]
[313203487,1706938235328,-500.0,0.00022859,2]
[313203489,1706938235337,-770.81,0.00022859,2]
[313203491,1706938235347,-500.0,0.00022859,2]
[313203493,1706938235356,-500.0,0.00022859,2]
[313203495,1706938235366,-500.0,0.00022859,2]
[313203497,1706938235375,-500.0,0.00022859,2]
[313203499,1706938235384,-503.2,0.00022859,2]
[313203501,1706938235393,-500.0,0.00022859,2]
[313203503,1706938235403,-500.0,0.00022859,2]
[313203505,1706938235412,-386.26311001,0.00022859,2]
[313203507,1706938235422,-500.0,0.00022859,2]
[313203509,1706938235432,-500.0,0.00022859,2]
[313203511,1706938235440,-1832.98,0.00022859,2]
[313203513,1706938235450,-748.59,0.00022859,2]
[313203515,1706938235460,-500.0,0.00022859,2]
[313203517,1706938235470,-500.0,0.00022859,2]
[313203519,1706938235481,-500.0,0.00022859,2]
[313203521,1706938235492,-500.0,0.00022859,2]
[313203523,1706938235501,-706.67,0.00022859,2]
[313203525,1706938235511,-580.60488584,0.00022859,2]
[313203526,1706938235521,-500.0,0.00022859,2]
[313203527,1706938235531,-1389.67169374,0.0002286,2]
[313203528,1706938235540,-500.0,0.0002286,2]
[313203529,1706938235549,-185.55120199,0.0002286,2]
[313203530,1706938235559,-617.58932979,0.0002286,2]
[313203531,1706938235568,-500.0,0.0002286,2]
[313203532,1706938235578,-1527.95,0.0002286,2]
[313203533,1706938235587,-929.37,0.0002286,2]
[313203534,1706938235597,-500.0,0.0002286,2]
[313203535,1706938235607,-500.0,0.0002286,2]
[313203536,1706938235617,-500.0,0.0002286,2]
[313203537,1706938235626,-500.0,0.0002286,2]
[313203538,1706938235636,-500.0,0.0002286,2]
[313203539,1706938235646,-574.6089405,0.0002286,2]
[313203540,1706938235655,-500.0,0.0002286,2]
[313203541,1706938235665,-847.16,0.0002286,2]
[313203542,1706938235674,-532.75,0.0002286,2]
[313203543,1706938235684,-500.0,0.0002286,2]
[313203544,1706938235693,-500.0,0.0002286,2]
[313203545,1706938235702,-16887.59,0.0002286,2]
[313203546,1706938235711,-210.58955901,0.00022861,2]
[313203547,1706938235720,-639.58974998,0.00022861,2]
[313203548,1706938235729,-500.0,0.00022861,2]
[313203549,1706938235739,-500.0,0.00022861,2]
[313203550,1706938235748,-500.0,0.00022861,2]
[313203551,1706938235757,-500.0,0.00022861,2]
[313203552,1706938235767,-560.27,0.00022861,2]
[313203553,1706938235776,-500.0,0.00022861,2]
[313203554,1706938235785,-541.11,0.00022861,2]
[313203555,1706938235794,-500.0,0.00022861,2]
[313203556,1706938235803,-500.0,0.00022861,2]
[313203557,1706938235813,-500.0,0.00022861,2]
[313203558,1706938235822,-500.0,0.00022861,2]
[313203559,1706938235831,-500.0,0.00022861,2]
[313203560,1706938235840,-500.0,0.00022861,2]
[313203561,1706938235850,-580.43,0.00022861,2]
[313203562,1706938235859,-641.83,0.00022861,2]
[313203563,1706938235869,-500.0,0.00022861,2]
[313203564,1706938235879,-500.0,0.00022861,2]
[313203565,1706938235888,-500.0,0.00022861,2]
[313203566,1706938235898,-171.45517628,0.00022861,2]
[313203567,1706938235907,-500.0,0.00022861,2]
[313203568,1706938235916,-500.0,0.00022861,2]
[313203569,1706938235925,-500.0,0.00022861,2]
[313203570,1706938235934,-500.0,0.00022861,2]
[313203571,1706938235943,-25155.2925,0.00022862,2]
[313203572,1706938235952,-1301.7954669,0.00022862,2]
[313203573,1706938235962,-25221.3023333,0.00022862,2]
[313203574,1706938235971,-17928.8444936,0.00022862,2]
[313203575,1706938235982,-3857.8570259,0.00022862,2]
[313203576,1706938235991,-916.51819618,0.00022867,2]
[313203577,1706938236001,-171.81003933,0.00022869,2]
[313203578,1706938236010,-163.54368856,0.00022869,2]
[313203579,1706938236019,-155.39910088,0.00022869,2]
[313203580,1706938236028,-420.71993344,0.0002287,2]
[313203581,1706938236037,-1389.67169374,0.0002287,2]
[313203582,1706938236046,-916.01451451,0.00022878,2]
[313203583,1706938236055,-2965.41627352,0.00022879,2]
[313203584,1706938236179,-536.48264337,0.00022879,10]
[313203585,1706938236191,-524.0,0.0002288,2]
[313203586,1706938236201,-1911.82882856,0.0002288,2]
[313203587,1706938236211,-1494792.29182256,0.0002288,2]
[313203588,1706938236221,-1389.67169374,0.0002288,2]
[313203589,1706938236230,-210.58955901,0.0002288,2]
[313203590,1706938236239,-24648.8421666,0.00022884,2]
[313203591,1706938236252,-1275.5864794,0.00022884,2]
[313203592,1706938236260,-24688.1147333,0.00022884,2]
[313203593,1706938236270,-19735.1957766,0.00022884,2]
[313203594,1706938236279,-4246.5404679,0.00022884,2]
[313203595,1706938236289,-477.07158217,0.00022884,6]
[313203596,1706938236299,-477.07158217,0.00022888,6]
[313203597,1706938236308,-1389.67169374,0.0002289,2]
[313203598,1706938236317,-1627.05067148,0.00022891,4]
[313203599,1706938236327,-208.47957849,0.00022891,2]
[313203600,1706938236336,-477.07158217,0.00022892,6]
[313203601,1706938236345,-477.07158217,0.00022896,6]
[313203602,1706938236355,-178.34454767,0.00022898,2]
[313203603,1706938236364,-156.13631034,0.00022898,2]
[313203604,1706938236374,-10553.08404704,0.00022899,2]
[313203605,1706938236383,-59435.81478849,0.000229,3]
[313203606,1706938236396,-1169.53619494,0.000229,3]
[313203607,1706938236408,-627.62684945,0.000229,3]
[313203611,1706938238583,-21830.34043593,0.000229,3]
[313203671,1706938241473,-336.91501424,0.000229,3]
[313203672,1706938241487,-1138.50001,0.000229,3]
[313203673,1706938241501,-543.43566378,0.000229,3]
[313203674,1706938241583,-735.43609094,0.000229,3]
[313203675,1706938241801,-816.22100029,0.000229,3]
[313203677,1706938241813,-525.21345931,0.000229,3]
[313203678,1706938241825,-838.48045101,0.000229,3]
[313203679,1706938241836,-2814.42447915,0.000229,3]
[313203696,1706938243483,-479.77960225,0.00022859,2]
[313203738,1706938263748,206.0,0.00021564,2]
[313203739,1706938289864,200.0,0.00022,2]
[313203742,1706938410674,482.25,0.00021999,2]
[313203743,1706938411263,216.26,0.00020081,2]
[313203744,1706938411640,216.26,0.00022345,2]
[313203745,1706938433743,517.37,0.00021999,2]
[313203746,1706938689282,300.0,0.00022429,2]
[313203747,1706938792178,155.45,0.00021931,2]
[313203748,1706938813055,230.91600768,0.00022,2]
[313203749,1706938830991,194.63,0.00020019,2]
[313203750,1706938831189,194.63,0.00022283,2]
[313203751,1706938836149,401.87,0.00021937,2]
[313203752,1706938888524,586.1,0.00021961,2]
[313203753,1706938907664,-302.748,0.00022523,2]
[313203754,1706938907685,-1611.64277543,0.00022523,2]
[313203755,1706938907706,-85.60922457,0.00022523,2]
[313203756,1706938908202,-214.39077543,0.00022523,2]
[313203757,1706938908224,-1785.60922457,0.00022524,2]
[313203758,1706938908683,-2000.0,0.00022524,2]
[313203759,1706938909089,-2000.0,0.00022524,2]
[313203760,1706938909677,-2000.0,0.00022524,2]
[313203761,1706938909879,-2000.0,0.00022524,2]
[313203762,1706938916684,-1505.0,0.00022524,2]
[313203763,1706938954610,191.87697422,0.000225,2]
[313203764,1706938997292,2101.45,0.00021942,2]
[313203765,1706939270198,175.16,0.00020001,2]
[313203766,1706939270387,175.16,0.00022265,2]
[313203767,1706939297472,334.89,0.00021909,2]
[313203768,1706939297759,334.89,0.00021909,2]
[313203771,1706939324657,183.22,0.00021943,10]
[313203772,1706939347567,163.88556683,0.00022411,2]
[313203773,1706939373947,531.12,0.00021916,2]
[313203793,1706939431380,-578.53223834,0.00022503,2]
[313203794,1706939431393,-745.35826249,0.00022503,2]
[313203797,1706939431433,-287.7522746,0.00022503,2]
[313203798,1706939431442,-252.29,0.00022504,2]
[313203799,1706939431452,-552.84627395,0.00022507,2]
[313203800,1706939431542,-502.98088475,0.00022507,2]
[313203801,1706939431553,-344.29944675,0.00022511,2]
[313203802,1706939431562,-931.23535833,0.00022524,4]
[313203803,1706939431572,-150.0,0.00022538,2]
[313203804,1706939431582,-200.0,0.000226,2]
[313203805,1706939431593,-1247.45526918,0.000226,2]
[313203806,1706939431602,-3562.72374548,0.000226,2]
[313203807,1706939431612,-233.76,0.000226,2]
[313203808,1706939431623,-1000.0,0.000227,2]
[313203809,1706939431633,-2802.53557604,0.00022729,2]
[313203810,1706939431739,-64.46442396,0.00022729,2]
[313203811,1706939431749,-1041.99799213,0.00022729,2]
[313203812,1706939431761,-1240.00200787,0.00022729,2]
[313203814,1706939431770,-2917.0,0.00022729,2]
[313203816,1706939431779,-150.0,0.00022729,2]
[313203818,1706939431788,-150.99,0.00022759,2]
[313203820,1706939431798,-1247.45526917,0.00022759,2]
[313203822,1706939431807,-328.23814139,0.00022799,2]
[313203824,1706939431817,-689.1,0.00022799,2]
[313203825,1706939431826,-10296.6146,0.000228,2]
[313203826,1706939431835,-157.10945679,0.000228,2]
[313203827,1706939431844,-157.10945679,0.00022833,2]
[313203828,1706939431853,-244.62781177,0.00022859,2]
[313203829,1706939431862,-500.0,0.00022859,2]
[313203830,1706939431872,-500.0,0.00022859,2]
[313203831,1706939431881,-500.0,0.00022859,2]
[313203832,1706939431890,-500.0,0.00022859,2]
[313203833,1706939431899,-611.0535856,0.00022859,2]
[313203834,1706939431908,-500.0,0.00022859,2]
[313203835,1706939431918,-500.0,0.00022859,2]
[313203836,1706939431927,-500.0,0.00022859,2]
[313203837,1706939431936,-615.08,0.00022859,2]
[313203838,1706939431946,-500.0,0.00022859,2]
[313203839,1706939431955,-500.0,0.00022859,2]
[313203840,1706939431964,-500.0,0.00022859,2]
[313203841,1706939431973,-500.0,0.00022859,2]
[313203842,1706939431982,-500.0,0.00022859,2]
[313203843,1706939431991,-500.0,0.00022859,2]
[313203844,1706939432000,-647.51,0.00022859,2]
[313203845,1706939432009,-500.0,0.00022859,2]
[313203846,1706939432018,-157.10945679,0.00022867,2]
[313203847,1706939432027,-17828.9364497,0.00022895,2]
[313203848,1706939432036,-9160.4390129,0.00022895,2]
[313203849,1706939432044,-457.0815122,0.00022895,2]
[313203850,1706939432054,-1055.43531388,0.00022898,2]
[313203851,1706939432063,-2167.58714614,0.00022898,2]
[313203852,1706939432072,-807.83360716,0.00022898,2]
[313203853,1706939432081,-1867.37530683,0.00022898,2]
[313203854,1706939432090,-9652.34678452,0.00022898,2]
[313203855,1706939432128,-1581.01684152,0.00022898,2]
[313203856,1706939432139,-455.94522447,0.00022898,2]
[313203857,1706939432154,-893.71670212,0.00022898,2]
[313203858,1706939432164,-853.71847551,0.00022898,2]
[313203859,1706939432175,-852.59213198,0.00022898,2]
[313203860,1706939432190,-300.96616691,0.00022898,2]
[313203866,1706939437448,-832.20251183,0.00022898,2]
[313203867,1706939437503,-5125.96,0.00022898,2]
[313203868,1706939437769,-13248.59403026,0.00022898,2]
[313203869,1706939437779,-1205.01901313,0.00022898,2]
[313203870,1706939437788,-258.82614046,0.00022898,2]
[313203871,1706939437797,-3715.07311928,0.00022898,4]
[313203872,1706939437807,-1832.67621462,0.00022898,2]
[313203873,1706939437818,-5705.48005838,0.00022898,2]
[313203882,1706939440005,-877.16886363,0.00022898,2]
[313203900,1706939440167,-598.13420543,0.00022898,2]
[313203906,1706939440221,-180.45914146,0.00022898,2]
[313203909,1706939440230,-687.38864713,0.00022898,2]
[313203910,1706939440239,-155.56015398,0.00022898,2]
[313203912,1706939440247,-416.69148082,0.00022898,2]
[313203914,1706939440257,-258.42375054,0.00022898,2]
[313203921,1706939440957,-2.51167527,0.00022898,2]
[313203922,1706939440967,-359.80156588,0.00022898,2]
[313203923,1706939440977,-350.84998721,0.00022898,2]
[313203934,1706939442450,-500.0,0.00022898,2]
[313203939,1706939442614,-8515.63076634,0.00022898,2]
[313203940,1706939442626,-633.13267263,0.00022898,2]
[313203941,1706939442670,-2158.72853717,0.00022898,2]
[313203942,1706939442681,-1008.28687562,0.00022898,2]
[313203943,1706939442730,-977.00764136,0.00022898,2]
[313203944,1706939442757,-3720.5218677,0.00022898,2]
[313203945,1706939442767,-1059.83118801,0.00022899,2]
[313203946,1706939442776,-500.0,0.00022899,2]
[313203947,1706939442785,-500.0,0.00022899,2]
[313203948,1706939442794,-500.0,0.00022899,2]
[313203949,1706939442804,-500.0,0.00022899,2]
[313203950,1706939442813,-500.0,0.00022899,2]
[313203951,1706939442823,-890.65,0.00022899,2]
[313203952,1706939442832,-1464.29,0.00022899,2]
[313203953,1706939442841,-500.0,0.00022899,2]
[313203954,1706939442850,-500.0,0.00022899,2]
[313203955,1706939442860,-500.0,0.00022899,2]
[313203956,1706939442868,-500.0,0.00022899,2]
[313203957,1706939442878,-500.0,0.00022899,2]
[313203958,1706939442887,-500.0,0.00022899,2]
[313203959,1706939442896,-500.0,0.00022899,2]
[313203961,1706939442905,-185.62034082,0.00022899,2]
[313203963,1706939442914,-500.0,0.00022899,2]
[313203965,1706939442923,-500.0,0.00022899,2]
[313203967,1706939442932,-500.0,0.00022899,2]
[313203969,1706939442941,-500.0,0.00022899,2]
[313203971,1706939442950,-500.0,0.00022899,2]
[313203972,1706939442958,-510.55,0.00022899,2]
[313203973,1706939442967,-500.0,0.00022899,2]
[313203974,1706939442976,-609.11875049,0.00022899,2]
[313203975,1706939442985,-500.0,0.00022899,2]
[313203976,1706939442995,-500.0,0.00022899,2]
[313203977,1706939443004,-500.0,0.00022899,2]
[313203978,1706939443012,-1756.61,0.00022899,2]
[313203979,1706939443021,-546.93854002,0.00022899,2]
[313203980,1706939443030,-717.4,0.00022899,2]
[313203981,1706939443039,-500.0,0.00022899,2]
[313203982,1706939443048,-500.0,0.00022899,2]
[313203983,1706939443057,-677.22,0.00022899,2]
[313203984,1706939443066,-500.0,0.00022899,2]
[313203985,1706939443075,-413.86536667,0.00022899,2]
[313203986,1706939443084,-500.0,0.00022899,2]
[313203987,1706939443093,-1294.81,0.00022899,2]
[313203988,1706939443102,-13982.79049843,0.00022899,2]
[313203989,1706939443113,-2201.14950157,0.00022899,2]
[313203990,1706939443122,-500.0,0.00022899,2]
[313203991,1706939443131,-500.0,0.00022899,2]
[313203992,1706939443140,-460.64164098,0.00022899,2]
[313203993,1706939443149,-500.0,0.00022899,2]
[313203994,1706939443158,-500.0,0.00022899,2]
[313203995,1706939443166,-546.78,0.00022899,2]
[313203996,1706939443175,-503.83,0.00022899,2]
[313203997,1706939443184,-500.0,0.00022899,2]
[313203998,1706939443193,-500.0,0.00022899,2]
[313203999,1706939443202,-500.0,0.00022899,2]
[313204000,1706939443211,-738.69,0.00022899,2]
[313204001,1706939443219,-1378.91296737,0.000229,2]
[313204002,1706939443231,-392.29490377,0.000229,2]
[313204003,1706939443242,-783.10397591,0.000229,2]
[313204006,1706939445442,-515.54148535,0.00022898,2]
[313204007,1706939445453,-2146.95209631,0.000229,2]
[313204008,1706939445494,-800.0,0.000229,2]
[313204009,1706939445506,-298.73605664,0.000229,2]
[313204010,1706939445515,-2831.6403617,0.000229,2]
[313204011,1706939445607,-1022.67262803,0.000229,2]
[313204012,1706939445771,-198.7,0.000226,2]
[313204013,1706939445781,-235.07264747,0.000229,2]
[313204014,1706939448843,4141.4376246,0.00021916,2]
[313204015,1706939449984,6124.65892519,0.00021916,2]
[313204016,1706939451965,1036.36182794,0.00021916,2]
[313204017,1706939460576,1025.97688255,0.00021916,2]
[313204018,1706939461975,307.42675596,0.00021916,2]
[313204019,1706939464638,615.97552733,0.00021916,2]
[313204020,1706939466255,155.82,0.00022449,2]
[313204021,1706939469945,275.01,0.00022282,2]
[313204022,1706939527702,2000.0,0.00021963,2]
[313204023,1706939555694,23900.0,0.00021922,2]
[313204024,1706939570749,250.0,0.00021935,2]
[313204025,1706939575153,200.0,0.00021902,2]
[313204026,1706939580452,224.52486327,0.00022455,2]
[313204027,1706939621595,249.97,0.00021862,2]
[313204028,1706939627250,167.61,0.00021846,2]
[313204029,1706939645729,500.0,0.0002,2]
[313204030,1706939650660,689.51,0.00021829,2]
[313204031,1706939693183,500.0,0.00021798,2]
[313204032,1706939707517,1182.11,0.00021812,2]
[313204033,1706939708763,428.44,0.00021787,2]
[313204034,1706939742932,175.82035357,0.00022453,2]
[313204035,1706939759996,214.29,0.00019873,2]
[313204036,1706939760214,214.29,0.00022137,2]
[313204037,1706939804409,250.0,0.00021918,2]
[313204038,1706939809956,192.29,0.00021767,2]
[313204039,1706939830953,575.1,0.00021767,2]
[313204040,1706939836754,500.0,0.00021767,2]
[313204041,1706939940941,155.82,0.00021926,2]
[313204042,1706939941142,155.82,0.00022041,2]
[313204043,1706939941349,155.82,0.00022155,2]
[313204044,1706939941545,155.82,0.00022269,2]
[313204045,1706939941752,155.82,0.00022383,2]
[313204046,1706939941959,155.82,0.00022498,2]
[313204047,1706939965341,150.0,0.00021753,2]
[313204048,1706940006689,578.31253874,0.00022498,4]
[313204049,1706940178136,214.22,0.00021753,2]
[313204050,1706940213525,985.09,0.00021767,2]
[313204051,1706940219618,192.86,0.00019835,2]
[313204052,1706940219818,192.86,0.00022099,2]
[313204053,1706940306344,539.92,0.00021752,2]
[313204054,1706940380866,155.82,0.00021901,2]
[313204055,1706940381106,155.82,0.00022186,2]
[313204056,1706940381299,155.82,0.00022471,2]
[313204057,1706940404337,220.0,0.00021755,2]
[313204062,1706940573956,209.0,0.00022251,2]
[313204064,1706940621400,214.22,0.00021763,2]
[313204076,1706940631651,-165.40811891,0.00022546,2]
[313204078,1706940631661,-155.0,0.00022547,2]
[313204080,1706940631670,-1611.64277543,0.00022551,2]
[313204081,1706940631680,-721.93,0.00022551,2]
[313204083,1706940631690,-737.13,0.00022552,2]
[313204085,1706940631699,-716.18,0.00022552,2]
[313204087,1706940631840,-507.31350423,0.00022553,2]
[313204088,1706940631882,-222.34649577,0.00022553,2]
[313204089,1706940631891,-735.55,0.00022553,2]
[313204090,1706940631900,-732.29,0.00022554,2]
[313204091,1706940631920,-232.67726369,0.00022555,2]
[313204093,1706940631933,-267.31273631,0.00022555,2]
[313204095,1706940631944,-96.05099448,0.00022592,2]
[313204097,1706940631956,-469.13636334,0.00022592,2]
[313204099,1706940631968,-148.77264218,0.00022592,2]
[313204101,1706940631978,-168.89,0.000226,2]
[313204103,1706940631988,-464.64399601,0.00022617,2]
[313204104,1706940632006,-250.62600399,0.00022617,2]
[313204105,1706940632017,-348.88986483,0.00022658,2]
[313204106,1706940632053,-378.07013517,0.00022658,2]
[313204107,1706940632064,-735.89,0.00022678,2]
[313204108,1706940632075,-541.4513,0.00022699,2]
[313204109,1706940632085,-50.49837155,0.00022699,2]
[313204110,1706940632097,-546.98180888,0.00022699,2]
[313204111,1706940632107,-661.04464973,0.00022699,2]
[313204112,1706940632119,-516.85535027,0.00022699,2]
[313204113,1706940632129,-328.8002,0.00022699,2]
[313204114,1706940632139,-10018.52685199,0.00022699,2]
[313204115,1706940632149,-1000.0,0.000227,2]
[313204116,1706940632158,-41142.0,0.000227,2]
[313204117,1706940632169,-4574.0,0.000227,2]
[313204118,1706940632179,-2206.386,0.00022707,2]
[313204119,1706940632189,-2282.0,0.00022707,2]
[313204120,1706940632200,-2867.0,0.00022729,2]
[313204121,1706940632210,-155.82,0.00022756,2]
[313204122,1706940632219,-155.47717234,0.00022784,2]
[313204123,1706940632229,-152.75469588,0.00022784,2]